bitfinex/quotes_BTCUSD_20250617
["timestamp","ask_amount","ask_price","bid_price","bid_amount"]
[1750137196178,0.13645724,107370.0,107360.0,0.29513707]
[1750137196651,0.13645724,107370.0,107360.0,0.30445117]
[1750137196871,0.32272901,107370.0,107360.0,0.27650843]
[1750137197085,0.3041028,107370.0,107360.0,0.22634909]
[1750137197302,0.3041028,107370.0,107360.0,0.23566345]
[1750137197514,0.3041028,107370.0,107360.0,0.26057773]
[1750137197726,0.3041028,107370.0,107360.0,0.25126345]
[1750137197951,0.3041028,107370.0,107360.0,0.24194909]
[1750137198164,0.3041028,107370.0,107360.0,0.25126345]
[1750137198768,0.3041028,107370.0,107360.0,0.26057773]
[1750137199012,0.3041028,107370.0,107360.0,0.209849]
[1750137199237,0.1382843,107370.0,107360.0,0.2284773]
[1750137199458,0.14759745,107370.0,107360.0,0.55637846]
[1750137199670,0.04408,107370.0,107360.0,0.55637846]
[1750137199875,0.12553742,107370.0,107360.0,0.54706462]
[1750137200087,0.12553734,107370.0,107360.0,0.70797855]
[1750137200302,0.12553734,107370.0,107360.0,0.43090507]
[1750137200518,0.12553734,107370.0,107360.0,0.42159123]
[1750137200925,0.12553734,107370.0,107360.0,0.4123173]
[1750137201137,0.08645734,107370.0,107360.0,0.4123173]
[1750137201759,0.08645734,107370.0,107360.0,0.25136328]
[1750137201966,0.26341613,107370.0,107360.0,0.41227747]
[1750137202173,0.07714436,107370.0,107360.0,0.43090542]
[1750137202377,0.30701348,107370.0,107360.0,0.01424552]
[1750137202601,0.30410289,107370.0,107360.0,0.01424552]
[1750137202828,0.29478957,107370.0,107360.0,0.01424552]
[1750137203035,0.28547607,107370.0,107360.0,0.01424552]
[1750137203248,0.28547607,107370.0,107360.0,0.05644466]
[1750137203458,0.28547607,107370.0,107360.0,0.25204814]
[1750137203672,0.28547607,107370.0,107360.0,0.24273378]
[1750137203887,0.28547607,107370.0,107360.0,0.25204823]
[1750137204424,0.30067607,107370.0,107360.0,0.04719914]
[1750137204840,0.30067607,107370.0,107360.0,0.23348826]
[1750137205046,0.28547607,107370.0,107360.0,0.24280262]
[1750137205476,0.28547607,107370.0,107360.0,0.25214245]
[1750137206538,0.28547607,107370.0,107360.0,0.05653897]
[1750137206766,0.30097607,107370.0,107360.0,0.05653897]
[1750137207196,0.75500339,107370.0,107360.0,0.04719914]
[1750137207834,0.75500339,107370.0,107360.0,0.005]
[1750137212238,0.73900339,107370.0,107360.0,0.005]
[1750137213082,0.75420339,107370.0,107360.0,0.005]
[1750137217708,1.13683247,107370.0,107360.0,0.005]
[1750137222085,0.85044515,107370.0,107360.0,0.005]
[1750137223942,0.69880515,107370.0,107360.0,0.005]
[1750137224155,0.66810515,107370.0,107360.0,0.005]
[1750137224361,0.85874515,107370.0,107360.0,0.005]
[1750137227540,0.85874515,107370.0,107360.0,0.0212]
[1750137227763,0.85874515,107370.0,107360.0,0.005]
[1750137228454,0.57186339,107370.0,107360.0,0.005]
[1750137228679,0.24127177,107370.0,107360.0,0.23310348]
[1750137228896,0.12202006,107370.0,107360.0,0.26104544]
[1750137229350,0.11270656,107370.0,107360.0,0.26104544]
[1750137229789,0.1249307,107370.0,107360.0,0.26104544]
[1750137230005,0.17844858,107370.0,107360.0,0.2517316]
[1750137230423,0.36472035,107370.0,107360.0,0.25173177]
[1750137230670,0.35249656,107370.0,107360.0,0.25173177]
[1750137231091,0.30829226,107370.0,107360.0,0.25173177]
[1750137231512,0.30829226,107370.0,107360.0,0.26104579]
[1750137231734,0.30829226,107370.0,107360.0,0.27035963]
[1750137231735,0.12201945,107370.0,107360.0,0.27035963]
[1750137233590,0.13133303,107370.0,107360.0,0.27035963]
[1750137234018,0.11270604,107370.0,107360.0,0.27035963]
[1750137234246,0.12201936,107370.0,107360.0,0.27035963]
[1750137234531,0.005,107370.0,107360.0,0.55674695]
[1750137234729,0.005,107370.0,107360.0,0.65298871]
[1750137234958,0.005,107370.0,107360.0,0.80450871]
[1750137235429,0.00064432,107370.0,107360.0,0.80450871]
[1750137235881,0.04484862,107370.0,107360.0,0.51812139]
[1750137236105,0.04484862,107370.0,107360.0,0.80450871]
[1750137236783,0.0442043,107370.0,107360.0,0.80450871]
[1750137237009,0.06004717,107380.0,107370.0,0.24541149]
[1750137237231,0.06004717,107380.0,107370.0,0.53179881]
[1750137237467,0.06004717,107380.0,107370.0,0.55179881]
[1750137239403,0.06104717,107380.0,107370.0,0.56079881]
[1750137239822,0.06104717,107380.0,107370.0,0.67158142]
[1750137240029,0.06104717,107380.0,107370.0,0.69954642]
[1750137240678,0.06104717,107380.0,107370.0,1.03954642]
[1750137241142,0.10525147,107380.0,107370.0,1.03954642]
[1750137242004,0.11456349,107380.0,107370.0,1.03954642]
[1750137242239,0.11456349,107380.0,107370.0,1.19106642]
[1750137242464,0.10525147,107380.0,107370.0,1.19106642]
[1750137242672,0.12387543,107380.0,107370.0,1.19106642]
[1750137242897,0.11456341,107380.0,107370.0,1.19106642]
[1750137243529,0.10525147,107380.0,107370.0,1.19106642]
[1750137243963,0.12387552,107380.0,107370.0,1.19106642]
[1750137244177,0.11456341,107380.0,107370.0,1.19106642]
[1750137244597,0.07035911,107380.0,107370.0,1.19106642]
[1750137244841,0.10525147,107380.0,107370.0,1.19106642]
[1750137245126,0.11456341,107380.0,107370.0,1.19106642]
[1750137245753,0.12387543,107380.0,107370.0,1.19106642]
[1750137245953,0.13318763,107380.0,107370.0,1.19106642]
[1750137246176,0.13318754,107380.0,107370.0,1.19106642]
[1750137246379,0.11456341,107380.0,107370.0,1.19106642]
[1750137247155,0.10525147,107380.0,107370.0,1.19106642]
[1750137247585,0.11456341,107380.0,107370.0,1.19106642]
[1750137248329,0.10525147,107380.0,107370.0,1.19106642]
[1750137248932,0.11456341,107380.0,107370.0,1.19106642]
[1750137250996,0.10525147,107380.0,107370.0,1.19106642]
[1750137251575,0.11456349,107380.0,107370.0,1.19106642]
[1750137252694,0.12387569,107380.0,107370.0,1.19106642]
[1750137254396,0.11456349,107380.0,107370.0,1.19106642]
[1750137254806,0.11456349,107380.0,107370.0,1.03954642]
[1750137255018,0.12387577,107380.0,107370.0,1.19102642]
[1750137255335,0.12387569,107380.0,107370.0,1.19102642]
[1750137256061,0.11456349,107380.0,107370.0,1.19102642]
[1750137257022,0.12387569,107380.0,107370.0,1.19102642]
[1750137258155,0.13318806,107380.0,107370.0,1.19102642]
[1750137258387,0.12387569,107380.0,107370.0,1.19102642]
[1750137259239,0.11456349,107380.0,107370.0,1.19102642]
[1750137259868,0.12387569,107380.0,107370.0,1.19102642]
[1750137260800,0.11456349,107380.0,107370.0,0.9046391]
[1750137261022,0.11456349,107380.0,107370.0,1.19102642]
[1750137261881,0.1238756,107380.0,107370.0,1.19102642]
[1750137263580,0.10525147,107380.0,107370.0,1.19102642]
[1750137264025,0.11456341,107380.0,107370.0,1.19102642]
[1750137264483,0.09011392,107380.0,107370.0,1.19102642]
[1750137264699,0.04590962,107380.0,107370.0,1.19102642]
[1750137265514,0.09942586,107380.0,107370.0,1.19102642]
[1750137265955,0.10873797,107380.0,107370.0,1.19102642]
[1750137266165,0.11805034,107380.0,107370.0,1.19102642]
[1750137266385,0.11805025,107380.0,107370.0,1.17592642]
[1750137266574,0.10873797,107380.0,107370.0,1.17592642]
[1750137267021,0.09942597,107380.0,107370.0,1.15982642]
[1750137267246,0.10873825,107380.0,107370.0,1.00834642]
[1750137267458,0.10873825,107380.0,107370.0,1.15982642]
[1750137268097,0.11805079,107380.0,107370.0,0.70741825]
[1750137268317,0.3358059,107380.0,107370.0,0.69810527]
[1750137268540,0.32649379,107380.0,107370.0,0.84958527]
[1750137269400,0.32649379,107380.0,107370.0,0.85889842]
[1750137269615,0.14023937,107380.0,107370.0,0.8682114]
[1750137270945,0.14955209,107380.0,107370.0,0.8482114]
[1750137271155,0.33580651,107380.0,107370.0,0.83889842]
[1750137271372,0.32649423,107380.0,107370.0,0.83889842]
[1750137272354,0.32649423,107380.0,107370.0,0.84821148]
[1750137273382,0.37649423,107380.0,107370.0,0.58186351]
[1750137273586,0.64425638,107380.0,107370.0,0.009]
[1750137273792,0.64425638,107380.0,107370.0,0.16048]
[1750137274360,0.64425638,107380.0,107370.0,0.009]
[1750137274513,0.64425638,107380.0,107370.0,0.16048]
[1750137274727,0.64425638,107380.0,107370.0,0.009]
[1750137274728,0.35786906,107380.0,107370.0,0.009]
[1750137276883,0.64425638,107380.0,107370.0,0.009]
[1750137278288,0.79573638,107380.0,107370.0,0.009]
[1750137280639,0.89197814,107380.0,107370.0,0.009]
[1750137282116,0.89097814,107380.0,107370.0,0.002]
[1750137282493,0.89197814,107380.0,107370.0,0.003]
[1750137282936,0.84977384,107380.0,107370.0,0.003]
[1750137283152,0.89397814,107380.0,107370.0,0.003]
[1750137285986,0.60759082,107380.0,107370.0,0.003]
[1750137286191,0.89397814,107380.0,107370.0,0.003]
[1750137291390,0.74249814,107380.0,107370.0,0.003]
[1750137291639,0.93305814,107380.0,107370.0,0.003]
[1750137295100,0.94218972,107380.0,107370.0,0.003]
[1750137296102,1.22857704,107380.0,107370.0,0.003]
[1750137296487,1.28218972,107380.0,107370.0,0.003]
[1750137297952,1.56857704,107380.0,107370.0,0.003]
[1750137298495,1.28218972,107380.0,107370.0,0.003]
[1750137300037,0.9958024,107380.0,107370.0,0.003]
[1750137300254,0.98829384,107380.0,107370.0,0.003]
[1750137300466,0.53626652,107380.0,107370.0,0.003]
[1750137300666,0.47472476,107380.0,107370.0,0.003]
[1750137301037,0.32324476,107380.0,107370.0,0.18927177]
[1750137301250,0.27324476,107380.0,107370.0,0.07425626]
[1750137301453,0.47472476,107380.0,107370.0,0.28564144]
[1750137302240,0.50961634,107380.0,107370.0,0.04844268]
[1750137302453,0.82740366,107380.0,107370.0,0.003]
[1750137304770,0.92364542,107380.0,107370.0,0.003]
[1750137305752,0.27485204,107380.0,107370.0,0.003]
[1750137305987,0.31393204,107380.0,107370.0,0.19858518]
[1750137306195,0.48403686,107380.0,107370.0,0.23949842]
[1750137306408,0.47472458,107380.0,107370.0,0.22087177]
[1750137307024,0.46541204,107380.0,107370.0,0.0346]
[1750137307224,0.79600366,107380.0,107370.0,0.003]
[1750137307426,0.50961634,107380.0,107370.0,0.003]
[1750137307633,0.79600366,107380.0,107370.0,0.003]
[1750137308455,0.75179936,107380.0,107370.0,0.003]
[1750137308666,0.79600366,107380.0,107370.0,0.003]
[1750137309106,0.46541204,107380.0,107370.0,0.003]
[1750137309333,0.50961634,107380.0,107370.0,0.23909842]
[1750137309540,0.50961634,107380.0,107370.0,0.04351358]
[1750137309770,0.50961634,107380.0,107370.0,0.0187]
[1750137309986,0.79600366,107380.0,107370.0,0.0187]
[1750137310198,0.79600366,107380.0,107370.0,0.21428535]
[1750137310424,0.79600366,107380.0,107370.0,0.22359885]
[1750137310894,0.79600366,107380.0,107370.0,0.07332597]
[1750137311123,0.79600366,107380.0,107370.0,0.26891115]
[1750137311346,0.50961634,107380.0,107370.0,0.06401239]
[1750137311568,0.50961634,107380.0,107370.0,0.04831239]
[1750137313598,0.79600366,107380.0,107370.0,0.04831239]
[1750137314276,0.75179936,107380.0,107370.0,0.04831239]
[1750137314513,0.79600366,107380.0,107370.0,0.04831239]
[1750137316094,0.82750366,107380.0,107370.0,0.003]
[1750137316780,0.81170366,107380.0,107370.0,0.003]
[1750137318484,0.79600366,107380.0,107370.0,0.003]
[1750137318894,0.81190366,107380.0,107370.0,0.003]
[1750137320626,0.48131204,107380.0,107370.0,0.003]
[1750137320836,0.81190366,107380.0,107370.0,0.003]
[1750137321041,0.79600366,107380.0,107370.0,0.003]
[1750137321252,0.79604366,107380.0,107370.0,0.01231358]
[1750137321466,0.75183936,107380.0,107370.0,0.04491358]
[1750137321684,0.75183936,107380.0,107370.0,0.0356]
[1750137321852,0.79604366,107380.0,107370.0,0.0356]
[1750137322206,0.50965634,107380.0,107370.0,0.0356]
[1750137322433,0.50965634,107380.0,107370.0,0.0615144]
[1750137322647,0.50965634,107380.0,107370.0,0.0454144]
[1750137322880,0.50965634,107380.0,107370.0,0.0289144]
[1750137323580,0.31905634,107380.0,107370.0,0.0289144]
[1750137323798,0.50977634,107380.0,107370.0,0.0594144]
[1750137324008,0.50977634,107380.0,107370.0,0.0444144]
[1750137324218,0.50977634,107380.0,107370.0,0.0289144]
[1750137325633,0.81156366,107380.0,107370.0,0.003]
[1750137326085,0.82746366,107380.0,107370.0,0.003]
[1750137330198,0.92370542,107380.0,107370.0,0.003]
[1750137333739,0.92370542,107380.0,107370.0,0.0031]
[1750137334801,0.73298542,107380.0,107370.0,0.0031]
[1750137335018,0.4465981,107380.0,107370.0,0.0031]
[1750137335235,0.92362542,107380.0,107370.0,0.0031]
[1750137336603,0.90772542,107380.0,107370.0,0.0031]
[1750137337225,0.92282542,107380.0,107370.0,0.0031]
[1750137340290,0.87862112,107380.0,107370.0,0.0031]
[1750137340535,0.92282542,107380.0,107370.0,0.0031]
[1750137341750,0.73218542,107380.0,107370.0,0.0031]
[1750137341905,0.92274542,107380.0,107370.0,0.0031]
[1750137344141,0.87854112,107380.0,107370.0,0.0031]
[1750137344352,0.92274542,107380.0,107370.0,0.0031]
[1750137355010,1.26274542,107380.0,107370.0,0.0031]
[1750137355938,1.35889464,107380.0,107370.0,0.0031]
[1750137356172,1.26274542,107380.0,107370.0,0.0031]
[1750137361317,1.07218542,107380.0,107370.0,0.0031]
[1750137361542,1.26274542,107380.0,107370.0,0.0031]
[1750137364700,1.54913274,107380.0,107370.0,0.0031]
[1750137364916,1.66752462,107380.0,107370.0,0.0031]
[1750137365360,1.64528196,107380.0,107370.0,0.0031]
[1750137366045,1.35889464,107380.0,107370.0,0.0031]
[1750137366934,1.64528196,107380.0,107370.0,0.0031]
[1750137367193,1.66752512,107380.0,107370.0,0.0031]
[1750137370907,1.70860184,107380.0,107370.0,0.0011]
[1750137371330,2.20190184,107380.0,107370.0,0.0011]
[1750137371559,2.20490184,107380.0,107370.0,0.0011]
[1750137373510,2.20490184,107380.0,107370.0,0.0001993]
[1750137374875,2.31266738,107380.0,107370.0,0.0001993]
[1750137375092,0.3145408,107350.0,107340.0,0.00034976]
[1750137375294,0.90272988,107350.0,107340.0,0.00034976]
[1750137375916,0.88772988,107350.0,107340.0,0.00034976]
[1750137376367,0.96677407,107350.0,107340.0,0.00834976]
[1750137376586,1.76634039,107350.0,107340.0,0.00834976]
[1750137376819,1.78756339,107350.0,107340.0,0.00034976]
[1750137377023,1.75761171,107350.0,107340.0,0.00334976]
[1750137377233,1.75861171,107350.0,107340.0,0.00334976]
[1750137377442,1.85476093,107350.0,107340.0,0.00034976]
[1750137377652,1.85476093,107350.0,107340.0,0.00134976]
[1750137377856,1.85576093,107350.0,107340.0,0.00134976]
[1750137378065,1.85776093,107350.0,107340.0,0.00134976]
[1750137379323,1.83553793,107350.0,107340.0,0.00134976]
[1750137380569,1.26276329,107350.0,107340.0,0.00134976]
[1750137380779,1.83553793,107350.0,107340.0,0.00134976]
[1750137382678,0.88787273,107320.0,107310.0,0.0160502]
[1750137382892,1.19531449,107320.0,107310.0,0.0160502]
[1750137383312,1.53531449,107320.0,107310.0,0.0160502]
[1750137383512,1.24892717,107320.0,107310.0,0.0160502]
[1750137384127,1.24992717,107320.0,107310.0,0.01952246]
[1750137384333,1.24992717,107320.0,107310.0,0.02152246]
[1750137384334,1.23592717,107320.0,107310.0,0.02152246]
[1750137384538,1.23492717,107320.0,107310.0,0.01852246]
[1750137384739,1.25112717,107320.0,107310.0,0.01852246]
[1750137385067,1.25312717,107320.0,107310.0,0.01852246]
[1750137386322,1.43946371,107320.0,107310.0,0.01852246]
[1750137386522,1.63566371,107320.0,107310.0,0.01852246]
[1750137386966,1.63566371,107320.0,107280.0,0.0419]
[1750137386967,1.63156932,107320.0,107280.0,0.0419]
[1750137387194,1.21203004,107290.0,107280.0,0.01]
[1750137387442,1.7319118,107290.0,107280.0,0.01]
[1750137387881,1.44552448,107290.0,107280.0,0.01]
[1750137388313,1.44552448,107290.0,107280.0,0.011]
[1750137389183,1.44552448,107290.0,107280.0,0.013]
[1750137389184,1.44652448,107290.0,107280.0,0.013]
[1750137389392,1.44656448,107290.0,107280.0,0.012]
[1750137389789,1.44756448,107290.0,107280.0,0.012]
[1750137390283,1.45712486,107290.0,107280.0,0.012]
[1750137390508,1.4748279,107290.0,107280.0,0.012]
[1750137390719,1.76121522,107290.0,107280.0,0.012]
[1750137391625,1.18844058,107290.0,107280.0,0.012]
[1750137391836,1.76121522,107290.0,107280.0,0.012]
[1750137392709,1.7911669,107290.0,107280.0,0.012]
[1750137394985,1.21839226,107290.0,107280.0,0.012]
[1750137395229,1.7911669,107290.0,107280.0,0.012]
[1750137396248,1.51481522,107290.0,107280.0,0.012]
[1750137396485,1.02388448,107290.0,107280.0,0.012]
[1750137396711,0.88008448,107290.0,107280.0,0.0434]
[1750137397191,0.83588018,107290.0,107280.0,0.0434]
[1750137397416,0.88008448,107290.0,107280.0,0.012]
[1750137397686,0.89508448,107290.0,107280.0,0.012]
[1750137397960,0.7950337,107290.0,107280.0,0.012]
[1750137398189,0.9912337,107290.0,107280.0,0.012]
[1750137398410,0.90465586,107290.0,107280.0,0.012]
[1750137398836,1.24465586,107290.0,107280.0,0.012]
[1750137399280,1.54654318,107290.0,107280.0,0.012]
[1750137400613,1.59103571,107290.0,107280.0,0.012]
[1750137400830,1.68718493,107290.0,107280.0,0.012]
[1750137401508,1.71701214,107290.0,107280.0,0.012]
[1750137402188,1.78908261,107290.0,107280.0,0.012]
[1750137403299,1.59288261,107290.0,107280.0,0.012]
[1750137403520,1.78908261,107290.0,107280.0,0.012]
[1750137403953,1.78908261,107290.0,107270.0,0.0001]
[1750137403954,1.35874793,107280.0,107270.0,0.0001]
[1750137404200,1.57801273,107280.0,107270.0,0.0001]
[1750137404416,1.6500832,107280.0,107270.0,0.0001]
[1750137404655,1.59826499,107280.0,107270.0,0.0001]
[1750137404880,1.04553867,107280.0,107270.0,0.0001]
[1750137405093,1.70590606,107280.0,107270.0,0.0001]
[1750137405308,1.70637803,107280.0,107270.0,0.0001]
[1750137406427,1.74346317,107280.0,107270.0,0.0021]
[1750137406649,0.64094931,107260.0,107250.0,0.00198]
[1750137406864,1.57995864,107260.0,107250.0,0.00198]
[1750137407082,1.80770585,107260.0,107250.0,0.00198]
[1750137407328,1.83571985,107260.0,107250.0,0.00198]
[1750137407552,1.80589264,107260.0,107250.0,0.00198]
[1750137407763,1.77594096,107260.0,107250.0,0.00198]
[1750137408198,1.80589264,107260.0,107250.0,0.00198]
[1750137408425,1.37312659,107260.0,107250.0,0.00198]
[1750137408678,1.54403963,107260.0,107250.0,0.00198]
[1750137408900,1.54403963,107260.0,107250.0,0.03298]
[1750137408901,0.37642069,107260.0,107250.0,0.03298]
[1750137409127,0.35835022,107260.0,107250.0,0.03298]
[1750137409357,0.87986184,107260.0,107250.0,0.03298]
[1750137409580,0.88186184,107260.0,107250.0,0.03298]
[1750137410022,0.88002184,107260.0,107250.0,0.03298]
[1750137410252,0.88402184,107260.0,107250.0,0.03298]
[1750137410475,1.52570916,107260.0,107250.0,0.00198]
[1750137410694,1.54160916,107260.0,107250.0,0.00198]
[1750137410925,1.34352916,107260.0,107250.0,0.00198]
[1750137411152,1.54172916,107260.0,107250.0,0.00198]
[1750137411374,1.56185179,107260.0,107250.0,0.00198]
[1750137411593,1.65800101,107260.0,107250.0,0.00198]
[1750137411835,1.65900101,107260.0,107250.0,0.00198]
[1750137412277,1.36961369,107260.0,107250.0,0.00198]
[1750137412517,1.27546447,107260.0,107250.0,0.00198]
[1750137412739,1.24530447,107260.0,107250.0,0.00198]
[1750137412958,1.31780703,107260.0,107250.0,0.00198]
[1750137413214,1.11956703,107260.0,107250.0,0.00198]
[1750137413444,0.69435022,107260.0,107250.0,0.03408]
[1750137413675,0.29986846,107260.0,107250.0,0.03408]
[1750137413896,0.20810846,107260.0,107250.0,0.04340392]
[1750137414118,0.02164514,107260.0,107250.0,0.61674487]
[1750137414558,0.06584927,107260.0,107250.0,0.61674487]
[1750137414779,0.07217197,107260.0,107250.0,0.25785499]
[1750137415015,0.08249493,107260.0,107250.0,0.25785499]
[1750137415215,0.08449493,107260.0,107250.0,0.25885499]
[1750137415428,0.08149493,107260.0,107250.0,0.25785499]
[1750137415652,0.09081798,107260.0,107250.0,0.25785499]
[1750137415870,0.09381798,107260.0,107250.0,0.25785499]
[1750137416762,0.01232244,107260.0,107250.0,0.25785499]
[1750137416987,0.2616352,107260.0,107250.0,0.24853159]
[1750137417420,0.2616352,107260.0,107250.0,0.25785507]
[1750137417668,0.2616352,107260.0,107250.0,0.24853159]
[1750137417888,0.25231276,107260.0,107250.0,0.23920793]
[1750137418104,0.2836671,107260.0,107250.0,0.03408]
[1750137418360,0.0972043,107260.0,107250.0,0.24853116]
[1750137418569,0.13449545,107260.0,107250.0,0.24853133]
[1750137418783,0.14381859,107260.0,107250.0,0.25785481]
[1750137419212,0.13449615,107260.0,107250.0,0.24853133]
[1750137419434,0.31163625,107260.0,107250.0,0.24853133]
[1750137419899,0.46815625,107260.0,107250.0,0.25785481]
[1750137420112,0.27237031,107260.0,107250.0,0.31701759]
[1750137420329,0.27236996,107260.0,107250.0,0.26717821]
[1750137420674,0.2816931,107260.0,107250.0,0.26717821]
[1750137420859,0.2816931,107260.0,107250.0,0.25785481]
[1750137421321,0.27236996,107260.0,107250.0,0.26717821]
[1750137421548,0.28169301,107260.0,107250.0,0.26717821]
[1750137421771,0.47747895,107260.0,107250.0,0.25785481]
[1750137421985,0.29101615,107260.0,107250.0,0.25785481]
[1750137422215,0.2816924,107260.0,107250.0,0.26717821]
[1750137422735,0.29101545,107260.0,107250.0,0.26717821]
[1750137422929,0.29089545,107260.0,107250.0,0.26717821]
[1750137423138,0.29089545,107260.0,107250.0,0.25785481]
[1750137423348,0.46803581,107260.0,107250.0,0.24853133]
[1750137423578,0.0472043,107260.0,107250.0,0.71298637]
[1750137423795,0.003,107260.0,107250.0,1.22384722]
[1750137424025,0.003,107260.0,107250.0,1.25184322]
[1750137425765,0.003,107260.0,107250.0,1.28025752]
[1750137427096,0.003,107260.0,107250.0,1.26571667]
[1750137427308,0.003,107260.0,107250.0,1.28025752]
[1750137427951,0.003,107260.0,107250.0,1.28037752]
[1750137429669,0.003,107260.0,107250.0,0.92148764]
[1750137429902,0.003,107260.0,107250.0,1.28037752]
[1750137430336,0.003,107260.0,107250.0,1.30037752]
[1750137430977,0.003,107260.0,107250.0,1.16393752]
[1750137431213,0.00047197,107280.0,107270.0,0.9794419]
[1750137431428,0.00047197,107280.0,107270.0,1.23204366]
[1750137431670,0.00047197,107280.0,107270.0,1.25204366]
[1750137431893,0.55864793,107330.0,107320.0,0.00931792]
[1750137432109,0.55864793,107330.0,107320.0,0.18635855]
[1750137432320,0.55864793,107330.0,107320.0,0.19567647]
[1750137432563,0.55864793,107330.0,107320.0,0.24846519]
[1750137432764,0.55864793,107330.0,107320.0,0.04347088]
[1750137432977,0.55864793,107330.0,107320.0,0.24846484]
[1750137433188,0.55864793,107330.0,107320.0,0.24851201]
[1750137433391,0.55864793,107330.0,107320.0,0.23919452]
[1750137433600,0.56064793,107330.0,107320.0,0.24851227]
[1750137433810,0.30007697,107330.0,107320.0,0.25782985]
[1750137434054,0.25939316,107330.0,107320.0,0.30766456]
[1750137434491,0.002,107330.0,107320.0,0.79733705]
[1750137434725,0.05,107360.0,107350.0,0.02794491]
[1750137434929,0.30781315,107380.0,107370.0,0.20489867]
[1750137434930,0.13662956,107380.0,107370.0,0.20489867]
[1750137435139,0.13662956,107380.0,107360.0,0.56380686]
[1750137435140,0.0593128,107370.0,107360.0,0.56380686]
[1750137435356,0.06283016,107370.0,107360.0,0.57312114]
[1750137435571,0.11283016,107370.0,107360.0,0.36155742]
[1750137435790,0.11283016,107370.0,107350.0,0.28254823]
[1750137435791,0.08725276,107370.0,107350.0,0.28254823]
[1750137435994,0.0442043,107360.0,107350.0,0.5824565]
[1750137436211,0.0942043,107370.0,107360.0,0.21423142]
[1750137436447,0.10351719,107370.0,107360.0,0.21423142]
[1750137436659,0.05351719,107370.0,107360.0,0.21423142]
[1750137436873,0.12214341,107370.0,107360.0,0.20491758]
[1750137437087,0.07314341,107370.0,107360.0,0.22354535]
[1750137437295,0.14076996,107370.0,107360.0,0.22354535]
[1750137437527,0.13245655,107370.0,107360.0,0.22754535]
[1750137437733,0.07414323,107370.0,107360.0,0.16587868]
[1750137437946,0.05551719,107370.0,107360.0,0.18450714]
[1750137438160,0.06483034,107370.0,107360.0,0.18450714]
[1750137438588,0.02993928,107370.0,107360.0,0.18450714]
[1750137438816,0.06483034,107370.0,107360.0,0.18450714]
[1750137439029,0.0113128,107370.0,107360.0,0.54339702]
[1750137439258,0.01131289,107370.0,107360.0,0.67513878]
[1750137439467,0.05551719,107370.0,107360.0,0.67513878]
[1750137439684,0.07414341,107370.0,107360.0,0.4571889]
[1750137439897,0.08345673,107370.0,107360.0,0.29143506]
[1750137440122,0.08345682,107370.0,107360.0,0.3007489]
[1750137440330,0.30401351,107370.0,107360.0,0.03831445]
[1750137440551,0.30110298,107370.0,107360.0,0.22460357]
[1750137440760,0.30110298,107370.0,107360.0,0.23391785]
[1750137440969,0.29178957,107370.0,107360.0,0.029]
[1750137441176,0.29178957,107370.0,107360.0,0.03831445]
[1750137441439,0.29178957,107370.0,107360.0,0.27389169]
[1750137441649,0.12414393,107370.0,107360.0,0.29251998]
[1750137441862,0.31332625,107370.0,107360.0,0.44895998]
[1750137442070,0.3104157,107370.0,107360.0,0.44895998]
[1750137442277,0.30110272,107370.0,107360.0,0.43964588]
[1750137442487,0.06483095,107370.0,107360.0,0.4489599]
[1750137442690,0.06483095,107370.0,107360.0,0.45827374]
[1750137442903,0.07414453,107370.0,107360.0,0.4489599]
[1750137443335,0.06483052,107370.0,107360.0,0.45827374]
[1750137443553,0.07414402,107370.0,107360.0,0.45827374]
[1750137443759,0.07414393,107370.0,107360.0,0.45827374]
[1750137443975,0.01131298,107370.0,107360.0,0.45827374]
[1750137444181,0.02062622,107370.0,107360.0,0.45827374]
[1750137444391,0.06483052,107370.0,107360.0,0.81716362]
[1750137444596,0.07414393,107370.0,107360.0,0.81716362]
[1750137444805,0.01131298,107370.0,107360.0,0.81716362]
[1750137445200,0.002,107370.0,107360.0,0.94420538]
[1750137445911,0.05551719,107370.0,107360.0,0.4288755]
[1750137446126,0.07414375,107370.0,107360.0,0.5703555]
[1750137446544,0.07414366,107370.0,107360.0,0.5703555]
[1750137446992,0.01131289,107370.0,107360.0,0.94484538]
[1750137447210,0.0462043,107370.0,107360.0,0.94484538]
[1750137447427,0.002,107370.0,107360.0,0.94484538]
[1750137447852,0.002,107370.0,107360.0,0.78836538]
[1750137448095,0.06483052,107370.0,107360.0,0.94560538]
[1750137448318,0.002,107370.0,107360.0,0.94560538]
[1750137448735,0.002,107370.0,107360.0,1.28560538]
[1750137448736,0.0462043,107370.0,107360.0,1.28560538]
[1750137449192,0.0462043,107370.0,107360.0,0.97357338]
[1750137449428,0.0462043,107370.0,107360.0,1.31357338]
[1750137449633,0.002,107370.0,107360.0,1.32811423]
[1750137449843,0.002,107370.0,107360.0,1.17087423]
[1750137450060,0.0462043,107370.0,107360.0,1.32815423]
[1750137451767,0.002,107370.0,107360.0,1.32815423]
[1750137452026,0.0462043,107370.0,107360.0,1.32815423]
[1750137452488,0.002,107370.0,107360.0,1.32815423]
[1750137453191,0.002,107370.0,107360.0,1.31361338]
[1750137453418,0.002,107370.0,107360.0,1.32815423]
[1750137453645,0.002,107370.0,107360.0,2.18094411]
[1750137453870,0.002,107370.0,107360.0,1.82205423]
[1750137454096,0.002,107370.0,107360.0,2.18094411]
[1750137454338,0.002,107370.0,107360.0,1.30588435]
[1750137454573,0.002,107370.0,107360.0,1.30827423]
[1750137454807,0.002,107370.0,107360.0,0.79198435]
[1750137455019,0.25010263,107370.0,107360.0,0.19028912]
[1750137455246,0.25010263,107370.0,107360.0,0.36647776]
[1750137455477,0.25110263,107370.0,107360.0,0.37147776]
[1750137455698,0.25010263,107370.0,107360.0,0.36747776]
[1750137455913,0.25010263,107370.0,107360.0,0.005]
[1750137456145,0.24178948,107370.0,107360.0,0.20460357]
[1750137456369,0.24178948,107370.0,107360.0,0.16652]
[1750137456586,0.24178948,107370.0,107360.0,0.16252]
[1750137456587,0.24078948,107370.0,107360.0,0.16252]
[1750137456845,0.24078948,107370.0,107360.0,0.16552]
[1750137457279,0.24078948,107370.0,107360.0,0.20257031]
[1750137459932,0.24078948,107370.0,107360.0,0.04505031]
[1750137460154,0.24078948,107370.0,107360.0,0.05436476]
[1750137460372,0.24078948,107370.0,107360.0,0.06367912]
[1750137460606,0.24078948,107370.0,107360.0,0.25928252]
[1750137461252,0.24078948,107370.0,107360.0,0.24996824]
[1750137461505,0.23147607,107370.0,107360.0,0.04505031]
[1750137463531,0.23147607,107370.0,107360.0,0.008]
[1750137463959,0.23147607,107370.0,107360.0,0.01731436]
[1750137464692,0.23147607,107370.0,107360.0,0.01731445]
[1750137464905,0.23147607,107370.0,107360.0,0.21291785]